bitfinex/quotes_BTCUSD_20220105
["timestamp","ask_amount","ask_price","bid_price","bid_amount"]
[1641389456480,0.03644401,46416.0,46415.0,1.67281341]
[1641389456874,0.0002,46416.0,46415.0,1.67405947]
[1641389458276,0.0002,46416.0,46415.0,1.68305947]
[1641389459221,0.0002,46416.0,46415.0,1.67405947]
[1641389459922,0.0002,46416.0,46415.0,1.68305947]
[1641389460323,0.0002,46416.0,46415.0,1.58305947]
[1641389460524,0.0002,46416.0,46415.0,1.58181341]
[1641389460725,0.0002,46416.0,46415.0,2.38097092]
[1641389461123,0.0002,46416.0,46415.0,0.363466]
[1641389461323,0.0002,46416.0,46415.0,0.354466]
[1641389462126,0.0002,46416.0,46415.0,0.362466]
[1641389462974,0.0002,46416.0,46415.0,0.36729242]
[1641389463175,0.0002,46416.0,46415.0,0.9389055]
[1641389463373,0.0002,46416.0,46415.0,0.9309055]
[1641389463976,0.1402,46416.0,46415.0,0.57961308]
[1641389464182,0.1402,46416.0,46415.0,0.14869308]
[1641389464379,0.1896,46416.0,46415.0,0.14869308]
[1641389464674,0.1616044,46414.0,46411.0,0.77191027]
[1641389465076,0.1616044,46414.0,46406.0,0.77191027]
[1641389465077,0.05,46414.0,46406.0,0.77191027]
[1641389465475,0.3732068,46415.0,46406.0,0.77191027]
[1641389465677,0.16158871,46412.0,46406.0,0.77191027]
[1641389465876,0.16158871,46412.0,46411.0,0.116137]
[1641389466076,0.21158871,46412.0,46411.0,0.116137]
[1641389466280,0.21158871,46412.0,46411.0,0.470603]
[1641389466281,0.053863,46412.0,46411.0,0.470603]
[1641389466530,0.0003094,46416.0,46411.0,0.470603]
[1641389466733,0.053846,46414.0,46413.0,0.053854]
[1641389466930,0.05385,46414.0,46411.0,0.116137]
[1641389467829,0.21544946,46414.0,46411.0,0.116137]
[1641389468029,0.05386649,46413.0,46411.0,0.121137]
[1641389468429,0.28524191,46412.0,46411.0,0.121137]
[1641389468630,0.33524191,46412.0,46411.0,0.121137]
[1641389469035,0.32024191,46412.0,46408.0,0.64643]
[1641389469234,0.05386844,46410.0,46408.0,0.64643]
[1641389469430,0.29530219,46409.0,46408.0,0.64643]
[1641389469830,0.05386844,46410.0,46408.0,0.64643]
[1641389470031,0.011,46409.0,46408.0,0.65543]
[1641389471072,0.28903359,46409.0,46408.0,0.65543]
[1641389471274,0.63153359,46409.0,46408.0,0.196243]
[1641389471574,0.77759659,46409.0,46408.0,0.196243]
[1641389471777,0.36,46408.0,46405.0,0.39753043]
[1641389471973,0.45731467,46407.0,46405.0,0.39753043]
[1641389472173,0.61119367,46407.0,46405.0,0.39753043]
[1641389472372,0.66119367,46407.0,46397.0,0.053879]
[1641389472577,0.66119367,46407.0,46392.0,0.00129683]
[1641389472578,0.00126969,46404.0,46392.0,0.107759]
[1641389472776,0.0435,46403.0,46390.0,0.80693606]
[1641389472977,0.053883,46398.0,46390.0,0.80693606]
[1641389473179,0.053881,46395.0,46392.0,0.053881]
[1641389473777,0.103881,46395.0,46392.0,0.053881]
[1641389474041,0.10320432,46395.0,46392.0,0.069881]
[1641389474447,0.21164344,46394.0,46392.0,0.069881]
[1641389474645,0.15776244,46394.0,46393.0,0.354466]
[1641389474843,0.05,46394.0,46393.0,0.354466]
[1641389475245,9.04e-05,46393.0,46392.0,0.069881]
[1641389475444,9.04e-05,46393.0,46392.0,0.05870983]
[1641389475646,9.04e-05,46393.0,46392.0,0.00482883]
[1641389475845,0.0435904,46393.0,46392.0,0.00482883]
[1641389476044,0.05,46394.0,46393.0,0.1214096]
[1641389476244,0.0935,46394.0,46393.0,0.1214096]
[1641389476443,0.3913146,46394.0,46393.0,0.1214096]
[1641389477245,0.55299086,46394.0,46393.0,0.1214096]
[1641389477446,0.85905386,46394.0,46392.0,0.00482883]
[1641389477646,0.58889741,46393.0,46392.0,0.00482883]
[1641389477876,0.349563,46393.0,46392.0,0.00482883]
[1641389478275,0.63318687,46393.0,46392.0,0.00482883]
[1641389478476,0.349563,46393.0,46392.0,0.81176489]
[1641389478676,0.32315622,46393.0,46392.0,2.03044588]
[1641389478875,0.0435,46393.0,46392.0,2.03044588]
[1641389479076,0.0435,46393.0,46392.0,0.00482883]
[1641389479579,0.0435,46393.0,46392.0,1.22350982]
[1641389479977,0.0435,46393.0,46392.0,0.79238182]
[1641389480277,0.35397214,46393.0,46392.0,0.005]
[1641389480477,0.66003514,46393.0,46392.0,0.005]
[1641389480680,0.66003514,46393.0,46384.0,0.91301835]
[1641389480681,0.053892,46390.0,46384.0,0.91301835]
[1641389480878,0.10778302,46388.0,46384.0,0.91301835]
[1641389481517,0.15778302,46388.0,46384.0,0.91301835]
[1641389481722,0.15778302,46388.0,46385.0,0.354466]
[1641389481921,0.05389,46387.0,46385.0,0.354466]
[1641389482123,0.05389,46387.0,46385.0,1.26748435]
[1641389482323,0.10389,46387.0,46385.0,1.26748435]
[1641389482719,0.10389,46387.0,46386.0,0.053887]
[1641389482922,0.10389,46387.0,46386.0,0.408353]
[1641389483423,0.05,46387.0,46386.0,0.408353]
[1641389484023,0.05,46387.0,46386.0,0.423353]
[1641389484227,0.37666639,46387.0,46386.0,0.015]
[1641389484422,0.0935,46387.0,46386.0,0.015]
[1641389485473,0.05389262,46385.0,46383.0,0.053892]
[1641389485775,0.0435,46384.0,46382.0,0.91301835]
[1641389485974,0.0435,46384.0,46383.0,0.354466]
[1641389486172,0.0435,46384.0,46383.0,0.019]
[1641389486374,0.32948728,46384.0,46383.0,0.019]
[1641389486572,0.0435,46384.0,46383.0,0.019]
[1641389486972,0.0935,46384.0,46383.0,0.019]
[1641389487371,0.0935,46384.0,46380.0,0.91301835]
[1641389487574,0.2012911,46384.0,46381.0,0.91301835]
[1641389488074,0.2012911,46384.0,46381.0,0.93001835]
[1641389488075,0.16168647,46383.0,46381.0,0.93001835]
[1641389488276,0.0935,46382.0,46381.0,0.93001835]
[1641389489420,0.0935,46382.0,46381.0,0.91301835]
[1641389490220,0.0975,46382.0,46381.0,0.96401835]
[1641389490821,0.0975,46382.0,46381.0,0.051]
[1641389491421,0.0935,46382.0,46378.0,1.18969368]
[1641389491621,0.10779175,46380.0,46379.0,1.26748435]
[1641389492023,0.15779175,46380.0,46379.0,1.26748435]
[1641389492225,0.15879175,46380.0,46379.0,1.31248435]
[1641389493080,0.15879175,46380.0,46379.0,1.29748435]
[1641389493281,0.15879175,46380.0,46379.0,0.384466]
[1641389493479,0.15779175,46380.0,46379.0,0.339466]
[1641389493878,0.15779175,46380.0,46379.0,0.34429619]
[1641389494080,0.15779175,46380.0,46379.0,0.04683019]
[1641389494282,0.15749175,46380.0,46379.0,0.04683019]
[1641389494483,0.20099175,46380.0,46379.0,0.04683019]
[1641389494883,0.20099175,46380.0,46379.0,0.042]
[1641389495381,0.20099175,46380.0,46376.0,0.48171035]
[1641389495382,0.20220351,46380.0,46376.0,0.48171035]
[1641389495580,0.42739609,46379.0,46376.0,0.48171035]
[1641389495785,0.09741319,46378.0,46376.0,0.48171035]
[1641389495981,0.14741319,46378.0,46377.0,0.69623621]
[1641389496181,0.46847619,46378.0,46377.0,0.69623621]
[1641389497025,0.74700564,46378.0,46377.0,0.26491433]
[1641389497225,0.74700564,46378.0,46375.0,0.26491433]
[1641389497429,0.374974,46377.0,46375.0,0.26491433]
[1641389497630,0.0435,46376.0,46373.0,0.81259202]
[1641389497829,0.053909,46375.0,46372.0,0.81259202]
[1641389498026,0.0935,46374.0,46372.0,0.81259202]
[1641389498227,0.0935,46374.0,46373.0,0.008]
[1641389498427,0.20132161,46374.0,46373.0,0.008]
[1641389499429,0.20132161,46374.0,46372.0,0.81259202]
[1641389499829,0.20132161,46374.0,46373.0,2.0319834]
[1641389500280,0.20432161,46374.0,46373.0,2.0319834]
[1641389501177,0.20432161,46374.0,46372.0,0.85242285]
[1641389501378,0.20132161,46374.0,46372.0,0.81742285]
[1641389501778,0.20253446,46374.0,46372.0,0.81742285]
[1641389501979,0.20132161,46374.0,46372.0,0.81742285]
[1641389502278,0.20732161,46374.0,46372.0,0.81742285]
[1641389502479,0.20732161,46374.0,46372.0,0.00483083]
[1641389502883,0.153411,46374.0,46373.0,0.4561406]
[1641389503082,0.153411,46374.0,46373.0,3.57074697]
[1641389503083,0.006,46374.0,46373.0,3.57074697]
[1641389503283,0.006,46374.0,46373.0,3.67074697]
[1641389503482,0.07622495,46389.0,46373.0,1.3406066]
[1641389503681,0.8002,46390.0,46385.0,0.2743488]
[1641389503882,0.321063,46389.0,46385.0,0.2743488]
[1641389504144,0.16168089,46388.0,46385.0,0.2743488]
[1641389504545,0.16168036,46387.0,46385.0,0.2743488]
[1641389505149,0.05,46386.0,46385.0,0.2743488]
[1641389506145,0.091,46386.0,46385.0,0.2743488]
[1641389506545,0.05389963,46385.0,46383.0,0.69615819]
[1641389506945,0.16169909,46385.0,46383.0,0.69615819]
[1641389507146,0.05,46384.0,46383.0,0.69615819]
[1641389508196,0.081,46384.0,46383.0,0.69715819]
[1641389508697,1.11,46381.0,46378.0,0.01269136]
[1641389508895,2.06206299,46379.0,46378.0,0.01269136]
[1641389509096,2.20684762,46379.0,46378.0,9.136e-05]
[1641389509292,1.60122056,46379.0,46361.0,0.004]
[1641389509495,0.00125471,46367.0,46361.0,0.004]
[1641389509692,0.17995971,46367.0,46361.0,0.004]
[1641389509894,0.51953271,46367.0,46361.0,0.004]
[1641389510092,0.62260771,46367.0,46361.0,0.004]
[1641389510297,0.30154471,46367.0,46361.0,0.004]
[1641389510494,0.30154471,46367.0,46356.0,0.004]
[1641389510495,0.16179637,46366.0,46356.0,0.004]
[1641389510692,0.0435,46365.0,46356.0,0.004]
[1641389510897,0.053932,46361.0,46356.0,0.004]
[1641389511193,0.10786311,46359.0,46356.0,0.004]
[1641389511394,0.0435,46358.0,46356.0,0.004]
[1641389511627,0.29645679,46357.0,46356.0,0.004]
[1641389511828,0.39844679,46357.0,46356.0,0.004]
[1641389512029,0.78364979,46357.0,46356.0,0.004]
[1641389512226,0.81775979,46357.0,46356.0,0.004]
[1641389512426,0.91775979,46357.0,46356.0,0.004]
[1641389512626,0.81775979,46357.0,46356.0,0.004]
[1641389513633,1.31275979,46357.0,46356.0,0.004]
[1641389513831,1.29861979,46357.0,46356.0,0.58913987]
[1641389514033,0.973053,46357.0,46356.0,0.58913987]
[1641389514232,1.28393642,46357.0,46356.0,0.58913987]
[1641389514631,1.28393642,46357.0,46356.0,0.004]
[1641389515477,1.33110378,46357.0,46356.0,0.004]
[1641389515677,1.45941378,46357.0,46356.0,0.004]
[1641389516080,1.45941378,46357.0,46356.0,0.15762443]
[1641389516277,1.46741378,46357.0,46356.0,0.15762443]
[1641389516478,1.46741378,46357.0,46355.0,0.0048326]
[1641389516678,0.64919061,46356.0,46351.0,0.8360142]
[1641389516882,0.00125189,46352.0,46351.0,0.8360142]
[1641389517079,0.36581489,46352.0,46351.0,0.8360142]
[1641389517279,0.6746805,46352.0,46351.0,0.8360142]
[1641389517480,0.7746805,46352.0,46351.0,0.01669241]
[1641389517680,0.8246805,46352.0,46351.0,0.01669241]
[1641389517880,0.8786215,46352.0,46351.0,0.01669241]
[1641389518080,1.3786215,46352.0,46351.0,0.01669241]
[1641389518281,1.3876215,46352.0,46347.0,0.81932179]
[1641389518482,0.00123832,46348.0,46347.0,0.81932179]
[1641389518687,0.04473832,46348.0,46347.0,0.38772774]
[1641389518882,0.41260431,46348.0,46346.0,0.01264567]
[1641389519128,0.64940429,46347.0,46346.0,0.01264567]
[1641389519328,0.74413786,46347.0,46339.0,0.92917184]
[1641389519529,0.053954,46344.0,46337.0,0.92917184]
[1641389519728,0.00127322,46341.0,46337.0,0.92917184]
[1641389519929,0.107914,46339.0,46337.0,0.49751984]
[1641389520130,0.04470145,46338.0,46337.0,0.49751984]
[1641389520433,0.06051145,46338.0,46332.0,0.06581284]
[1641389520627,0.00129387,46333.0,46332.0,0.06581284]
[1641389520828,0.04479387,46333.0,46332.0,0.06581284]
[1641389521231,0.04479387,46333.0,46326.0,0.004]
[1641389521627,0.10792954,46330.0,46326.0,0.004]
[1641389521828,0.0435,46329.0,46326.0,0.004]
[1641389522030,0.00124555,46327.0,46326.0,0.004]
[1641389522228,0.04474555,46327.0,46326.0,0.004]
[1641389522882,0.36580855,46327.0,46326.0,0.004]
[1641389523081,0.51580855,46327.0,46326.0,0.004]
[1641389523281,0.36580855,46327.0,46326.0,0.004]
[1641389523885,0.41977855,46327.0,46326.0,0.004]
[1641389524283,0.85277855,46327.0,46326.0,0.004]
[1641389524483,0.90277855,46327.0,46326.0,0.004]
[1641389524783,1.05277855,46327.0,46326.0,0.004]
[1641389525182,1.25277855,46327.0,46326.0,0.004]
[1641389525383,1.23977855,46327.0,46326.0,0.004]
[1641389525587,1.23977855,46327.0,46311.0,0.004]
[1641389525588,0.05397841,46324.0,46311.0,0.004]
[1641389525785,0.00120111,46322.0,46311.0,0.004]
[1641389525985,0.36576411,46322.0,46311.0,0.004]
[1641389526389,0.36576411,46322.0,46316.0,0.3876475]
[1641389526634,0.364563,46322.0,46316.0,0.40029425]
[1641389526834,0.0435,46322.0,46320.0,0.79484518]
[1641389527038,0.17193241,46324.0,46321.0,1.20032313]
[1641389527039,0.01,46324.0,46321.0,1.20032313]
[1641389527234,0.01,46324.0,46322.0,0.354466]
[1641389527633,0.7,46327.0,46323.0,0.33237942]
[1641389527834,0.7,46327.0,46324.0,0.354466]
[1641389528338,0.22,46324.0,46323.0,0.33937942]
[1641389528835,0.27,46324.0,46323.0,0.77937942]
[1641389529334,0.27,46324.0,46323.0,0.33937942]
[1641389529534,0.27,46324.0,46323.0,0.33231942]
[1641389530378,0.27,46324.0,46323.0,0.37531942]
[1641389530574,0.27,46324.0,46323.0,0.043]
[1641389530775,0.27,46324.0,46323.0,0.633]
[1641389530974,0.27,46324.0,46323.0,0.043]
[1641389531581,0.32396093,46324.0,46321.0,0.94387534]
[1641389531774,0.32396093,46324.0,46322.0,0.66897561]
[1641389532278,0.33196093,46324.0,46322.0,0.66897561]
[1641389532479,0.278,46324.0,46323.0,1.91557387]
[1641389532776,0.278,46324.0,46323.0,1.734466]
[1641389532777,0.228,46324.0,46323.0,1.734466]
[1641389532978,0.228,46324.0,46323.0,1.934466]
[1641389533180,0.2,46327.0,46323.0,1.93569244]
[1641389533478,0.2,46327.0,46326.0,1.518412]
[1641389533677,0.2,46327.0,46326.0,0.738412]
[1641389533878,0.2,46327.0,46326.0,0.838412]
[1641389534341,0.2,46327.0,46326.0,0.861412]
[1641389534935,0.2,46327.0,46326.0,0.531412]
[1641389535135,0.25,46327.0,46326.0,0.531412]
[1641389535535,0.25,46327.0,46326.0,0.508412]
[1641389535736,0.25,46327.0,46326.0,0.818412]
[1641389536336,0.25,46327.0,46326.0,0.846412]
[1641389536536,0.25,46327.0,46326.0,0.536412]
[1641389536740,0.25,46327.0,46326.0,0.482466]
[1641389537436,0.25,46327.0,46326.0,0.454466]
[1641389537638,0.25,46327.0,46326.0,1.234466]
[1641389537881,0.25,46327.0,46326.0,2.74711354]
[1641389538187,0.01264658,46339.0,46332.0,3.03412215]
[1641389538481,0.01264658,46339.0,46333.0,0.78717497]
[1641389538881,0.01264658,46339.0,46337.0,1.25125438]
[1641389538882,0.053943,46338.0,46337.0,1.25125438]
[1641389539082,0.053943,46338.0,46337.0,1.29177567]
[1641389539284,0.05233937,46338.0,46337.0,1.29177567]
[1641389539482,0.05233937,46338.0,46336.0,0.93730967]
[1641389539683,0.05362245,46338.0,46336.0,0.5056235]
[1641389539884,0.10362245,46338.0,46336.0,0.5056235]
[1641389540282,0.10362245,46338.0,46336.0,0.005]
[1641389540684,0.21025337,46338.0,46336.0,0.005]
[1641389541182,0.21025337,46338.0,46337.0,0.5881516]
[1641389541626,0.21025337,46338.0,46333.0,0.82278834]
[1641389541830,0.05395433,46336.0,46333.0,0.82278834]
[1641389542026,0.10791129,46335.0,46333.0,0.82278834]
[1641389542228,0.10791129,46335.0,46333.0,0.85678834]
[1641389542430,0.10791129,46335.0,46333.0,0.034]
[1641389542627,0.15791129,46335.0,46333.0,0.034]
[1641389543430,0.21186677,46335.0,46329.0,0.29985867]
[1641389543630,0.107914,46333.0,46329.0,0.29985867]
[1641389543830,0.107914,46333.0,46330.0,0.354466]
[1641389544229,0.157914,46333.0,46330.0,0.354466]
[1641389544434,0.05395624,46332.0,46330.0,1.53624639]
[1641389544629,0.10395624,46332.0,46330.0,1.53624639]
[1641389544830,0.05,46332.0,46330.0,0.354466]
[1641389545031,0.053957,46333.0,46330.0,0.354466]
[1641389545278,0.1,46334.0,46330.0,0.354466]
[1641389545478,0.05,46334.0,46331.0,1.18178039]
[1641389545679,0.05395,46335.0,46332.0,0.354466]
[1641389546279,0.05395,46335.0,46332.0,0.371466]
[1641389546681,0.05395,46335.0,46333.0,1.18178039]
[1641389546880,0.05395,46335.0,46334.0,0.354466]
[1641389547280,0.05,46336.0,46334.0,0.354466]
[1641389547481,0.22,46335.0,46334.0,0.354466]
[1641389547681,0.22,46335.0,46334.0,0.964466]
[1641389547880,0.22,46335.0,46334.0,3.09016248]
[1641389548281,0.22,46335.0,46334.0,3.20216248]
[1641389548282,0.27,46335.0,46334.0,3.20216248]
[1641389548480,0.27,46335.0,46334.0,2.25824639]
[1641389548481,0.22,46335.0,46334.0,2.25824639]
[1641389549026,0.42,46345.0,46343.0,0.28324805]
[1641389549246,0.42,46345.0,46342.0,0.25807808]
[1641389550231,0.42,46345.0,46344.0,0.29549479]
[1641389550430,0.42,46345.0,46344.0,0.64996079]
[1641389550931,0.42,46345.0,46344.0,1.83174118]
[1641389551127,0.47,46345.0,46344.0,1.83174118]
[1641389551532,0.47,46345.0,46344.0,0.64996079]
[1641389552131,0.47,46345.0,46344.0,1.53624639]
[1641389552329,0.47,46345.0,46344.0,1.55424639]
[1641389552776,0.52,46345.0,46344.0,1.55424639]
[1641389553178,0.52,46345.0,46344.0,1.19978039]
[1641389553580,0.52,46345.0,46344.0,1.18178039]
[1641389553778,0.52,46345.0,46344.0,1.53624639]
[1641389554377,0.52,46345.0,46344.0,1.55124639]
[1641389555583,0.52127299,46345.0,46344.0,1.18178039]
[1641389555781,0.52127299,46345.0,46344.0,0.75017239]
[1641389556282,0.62917099,46345.0,46344.0,0.004]
[1641389556523,0.95023399,46345.0,46344.0,0.004]
[1641389556922,0.05395036,46342.0,46338.0,0.25137619]
[1641389557123,0.10790136,46342.0,46338.0,0.25137619]
[1641389557326,0.053951,46341.0,46338.0,0.25137619]
[1641389558422,0.053951,46341.0,46338.0,0.28837619]
[1641389558625,0.05395026,46340.0,46338.0,0.28837619]
[1641389558925,0.10395026,46340.0,46338.0,0.28837619]
[1641389559123,0.05,46339.0,46338.0,0.28837619]
[1641389559524,0.05,46339.0,46338.0,0.25137619]
[1641389560372,0.05,46339.0,46338.0,0.29537619]
[1641389561771,0.05,46339.0,46338.0,0.25137619]
[1641389562173,0.053953,46338.0,46335.0,0.94167663]
[1641389562374,0.053952,46337.0,46336.0,0.58897374]
[1641389562772,0.103952,46337.0,46336.0,0.58897374]
[1641389562973,0.153952,46337.0,46336.0,0.58897374]
[1641389563372,0.153952,46337.0,46332.0,0.58897374]
[1641389563572,0.053956,46335.0,46332.0,0.58897374]
[1641389563772,0.1079118,46335.0,46333.0,0.354466]
[1641389564032,0.2079118,46335.0,46333.0,0.354466]
[1641389564430,0.2029118,46335.0,46333.0,0.99043974]
[1641389565933,0.2029118,46335.0,46334.0,0.58897374]
[1641389566132,0.2029118,46335.0,46334.0,0.94343974]
[1641389566333,0.2029118,46335.0,46334.0,0.354466]
[1641389566534,0.2029118,46335.0,46334.0,0.454466]
[1641389567133,0.2029118,46335.0,46334.0,0.354466]
[1641389568374,0.2029118,46335.0,46334.0,0.485466]
[1641389569577,0.2029118,46335.0,46334.0,0.454466]
[1641389570282,0.2029118,46335.0,46334.0,0.473466]
[1641389570880,0.2029118,46335.0,46334.0,0.373466]
[1641389571630,0.2029118,46335.0,46334.0,0.354466]
[1641389572329,0.2029118,46335.0,46334.0,0.372466]
[1641389572730,0.2029118,46335.0,46334.0,0.122466]
[1641389573530,0.2029118,46335.0,46334.0,0.104466]
[1641389573730,0.2029118,46335.0,46334.0,2.2022061]
[1641389574430,0.2029118,46335.0,46334.0,2.2222061]
[1641389574829,0.2029118,46335.0,46334.0,1.28052947]
[1641389575678,0.2029118,46335.0,46334.0,1.26052947]
[1641389576273,0.2029118,46335.0,46334.0,1.28052947]
[1641389577276,0.2029118,46335.0,46334.0,1.70495008]
[1641389577277,0.095,46335.0,46334.0,1.70495008]
[1641389577674,0.05,46336.0,46334.0,1.68495008]
[1641389577872,0.05,46337.0,46335.0,0.68012203]
[1641389578079,0.05,46337.0,46336.0,0.6730823]
[1641389578676,0.05,46337.0,46336.0,0.354736]
[1641389578877,0.05394,46338.0,46336.0,0.76210629]
[1641389579124,0.05394,46338.0,46336.0,1.61079947]
[1641389579724,0.05394,46338.0,46337.0,0.30867978]
[1641389579924,0.05394,46338.0,46337.0,0.66341578]
[1641389580328,0.05394,46338.0,46337.0,1.83347925]
[1641389580526,0.10394,46338.0,46337.0,1.83347925]
[1641389580729,0.10394,46338.0,46337.0,1.52479947]
[1641389580928,0.10394,46338.0,46337.0,1.62479947]
[1641389581728,0.10394,46338.0,46337.0,1.61079947]
[1641389582327,0.10394,46338.0,46337.0,1.62579947]
[1641389583380,0.10394,46338.0,46337.0,1.52434038]
[1641389583779,0.10394,46338.0,46337.0,1.50934038]
[1641389584477,0.10394,46338.0,46337.0,1.52534038]
[1641389585580,0.10394,46338.0,46337.0,1.50934038]
[1641389586378,0.10394,46338.0,46337.0,1.51834038]
[1641389587431,0.10394,46338.0,46337.0,1.16506347]
[1641389587832,0.10043358,46338.0,46337.0,1.16506347]
[1641389588331,0.10043358,46338.0,46337.0,1.17406347]
[1641389589733,0.10043358,46338.0,46337.0,1.15606347]
[1641389590379,0.10043358,46338.0,46337.0,1.19506347]
[1641389591503,0.10043358,46338.0,46337.0,0.76340432]
[1641389591681,0.10043358,46338.0,46337.0,0.72440432]
[1641389592482,0.10043358,46338.0,46337.0,0.76040432]
[1641389593783,0.10043358,46338.0,46337.0,0.72440432]
[1641389594527,0.10043358,46338.0,46337.0,0.039]
[1641389595329,0.05043358,46338.0,46337.0,0.039]
[1641389595633,0.32967211,46342.0,46337.0,0.039]
[1641389595634,0.2,46347.0,46337.0,0.37547738]
[1641389595829,0.2,46347.0,46338.0,0.354723]
[1641389595830,0.75392997,46347.0,46338.0,0.354723]
[1641389596031,0.7,46347.0,46341.0,0.053931]
[1641389596231,0.2,46347.0,46343.0,0.00122001]
[1641389596431,0.2,46347.0,46343.0,1.93240323]
[1641389596631,0.2,46347.0,46343.0,2.38212623]
[1641389596831,0.053931,46345.0,46343.0,1.43155162]
[1641389597031,0.053931,46345.0,46343.0,1.43030504]
[1641389597630,0.053931,46345.0,46343.0,1.48423504]
[1641389597882,0.10786392,46345.0,46343.0,1.48423504]
[1641389598283,0.12563379,46344.0,46343.0,1.48423504]
[1641389598482,0.12563379,46344.0,46343.0,1.45130504]
[1641389599081,0.12563379,46344.0,46343.0,2.02130504]
[1641389599684,0.12563379,46344.0,46343.0,2.00030504]
[1641389600184,0.07563379,46344.0,46343.0,2.00030504]
[1641389600386,0.07563379,46344.0,46343.0,2.04510414]
[1641389600585,0.07563379,46344.0,46343.0,2.06510414]
[1641389600985,0.07563379,46344.0,46343.0,2.87510414]
[1641389601185,0.2,46347.0,46343.0,2.92903214]
[1641389601389,0.42,46348.0,46346.0,0.6480437]
[1641389601634,0.42,46348.0,46346.0,0.7480437]
[1641389602033,0.47,46348.0,46346.0,0.7480437]
[1641389602433,0.05392828,46347.0,46346.0,0.8219717]
[1641389602634,0.05392828,46347.0,46346.0,1.60095523]
[1641389603235,0.05399529,46347.0,46346.0,0.7680437]
[1641389604436,0.05399529,46347.0,46346.0,0.7730437]
[1641389605403,0.04899529,46347.0,46346.0,0.7730437]
[1641389606205,0.04399529,46347.0,46346.0,0.7730437]
[1641389606404,0.04399529,46347.0,46346.0,0.7480437]
[1641389606608,0.04399529,46347.0,46346.0,2.78957271]
[1641389607206,0.04399529,46347.0,46346.0,1.95666118]
[1641389608104,0.04399529,46347.0,46346.0,1.93166118]
[1641389608508,0.04399529,46347.0,46346.0,1.95866118]
[1641389608707,0.42,46348.0,46346.0,1.95866118]
[1641389608909,0.001,46359.0,46347.0,0.51282059]
[1641389609138,0.001,46359.0,46352.0,0.00126]
[1641389609334,0.215714,46364.0,46352.0,1.779483]
[1641389609335,0.001,46357.0,46352.0,1.779483]
[1641389609535,0.001,46357.0,46352.0,0.499483]
[1641389609733,0.001,46357.0,46352.0,1.68310048]
[1641389610134,0.001,46357.0,46352.0,0.5534]
[1641389610434,0.001,46357.0,46352.0,0.93554374]
[1641389610633,0.001,46357.0,46352.0,0.95654374]
[1641389610834,0.053916,46354.0,46352.0,0.95654374]
[1641389611035,0.103916,46354.0,46352.0,2.14016122]
[1641389611237,0.053916,46354.0,46352.0,2.14016122]
[1641389611448,0.053916,46354.0,46352.0,0.95654374]
[1641389611837,0.053916,46354.0,46353.0,1.18361748]
[1641389612038,0.053916,46354.0,46353.0,1.53834048]
[1641389612237,0.053916,46354.0,46353.0,1.63834048]
[1641389612438,0.053916,46354.0,46353.0,1.68734048]
[1641389613711,0.05398284,46354.0,46353.0,1.63834048]
[1641389614408,0.05398284,46354.0,46353.0,1.63334048]
[1641389614608,0.05398284,46354.0,46353.0,1.67334048]
[1641389615211,0.05398284,46354.0,46353.0,1.66834048]
[1641389615817,0.05398284,46354.0,46353.0,1.52834048]
[1641389616015,0.06163857,46354.0,46353.0,1.52834048]
[1641389616213,0.05534852,46354.0,46353.0,1.52834048]
[1641389616644,0.06134852,46354.0,46353.0,1.54434048]
[1641389617645,0.05498284,46354.0,46353.0,1.54434048]
[1641389617845,0.04898284,46354.0,46353.0,1.62834048]
[1641389618647,0.04898284,46354.0,46353.0,1.65234048]
[1641389620386,0.04898284,46354.0,46353.0,1.62834048]
[1641389620585,0.04898284,46354.0,46353.0,1.65234048]
[1641389620784,0.04898284,46354.0,46353.0,1.55234048]
[1641389622585,0.04898284,46354.0,46353.0,1.57434048]
[1641389622985,0.09898284,46354.0,46353.0,2.52960519]
[1641389623187,0.04898284,46354.0,46353.0,2.52960519]
[1641389623385,0.09898284,46354.0,46353.0,2.52960519]
[1641389623587,0.08898284,46354.0,46353.0,2.52960519]
[1641389623787,0.08898284,46354.0,46353.0,2.48360519]
[1641389624235,0.08898284,46354.0,46353.0,1.52834048]
[1641389624737,0.08898284,46354.0,46353.0,1.55034048]
[1641389625537,0.03898284,46354.0,46353.0,1.65034048]
[1641389625937,0.03898284,46354.0,46353.0,2.58360519]
[1641389626136,0.03898284,46354.0,46353.0,2.48360519]
[1641389626535,0.03898284,46354.0,46353.0,2.52260519]
[1641389627536,0.03898284,46354.0,46353.0,1.66734048]
[1641389628585,0.03898284,46354.0,46353.0,1.65334048]
[1641389629787,0.03898284,46354.0,46353.0,1.52834048]
[1641389630587,0.03898284,46354.0,46353.0,1.55334048]
[1641389631858,0.03898284,46354.0,46353.0,1.52834048]
[1641389632259,0.03898284,46354.0,46353.0,1.62834048]
[1641389632665,0.03898284,46354.0,46353.0,1.65034048]
[1641389632861,0.42,46356.0,46355.0,0.06873041]
[1641389633060,0.42,46356.0,46355.0,0.354723]
[1641389633460,0.42,46356.0,46355.0,0.454723]
[1641389633860,0.42,46356.0,46355.0,1.62834048]
[1641389634060,0.47,46356.0,46355.0,1.62834048]
[1641389634260,0.47666194,46356.0,46355.0,1.62834048]
[1641389634460,0.47,46356.0,46355.0,1.62834048]
[1641389634661,0.47,46356.0,46355.0,1.64734048]
[1641389634860,0.47006246,46356.0,46355.0,1.64734048]
[1641389635486,0.42006246,46356.0,46355.0,1.64734048]
[1641389635885,0.42006246,46356.0,46355.0,1.62834048]
[1641389636687,0.42006246,46356.0,46355.0,1.64334048]
[1641389636887,0.42006246,46356.0,46355.0,2.59860519]
[1641389637087,0.42006246,46356.0,46355.0,4.02210519]
[1641389637088,0.03751646,46356.0,46355.0,4.02210519]
[1641389637287,0.03751646,46356.0,46355.0,3.87798519]
[1641389637288,2.46e-06,46356.0,46355.0,3.87798519]
[1641389637488,2.46e-06,46356.0,46355.0,2.92393425]
[1641389637686,0.01269303,46368.0,46355.0,2.92393425]
[1641389637894,0.01269303,46368.0,46366.0,0.0012504]
[1641389638191,0.01269303,46368.0,46367.0,1.00624918]
[1641389638192,0.05390007,46368.0,46367.0,1.00624918]
[1641389638386,0.05390007,46368.0,46367.0,1.36097218]
[1641389638587,0.10780107,46368.0,46367.0,1.36097218]
[1641389638787,0.10780107,46368.0,46367.0,1.05957899]